Cogmind - Beta 15 @@@ ROGUE MODE // 2025.09.02 @ 15:04:20 Player: Mogwok Wargfriend Result: Destroyed by P-60 Hacker with Shock Rifle Performance ------------- Evolutions (3) 1500 Regions Visited (7) 1400 Robots Destroyed (145) 725 Value Destroyed (3053) 3053 Prototype IDs (10) 200 Alien Tech Used (0) 0 Bonus (330) 330 TOTAL SCORE: 7208 Bonus ------- High Alert Combat Kills 152 Follower Combat Kills 195 Friendly Fire -17 Cogmind --------- Core Integrity 0/700 Matter 279/300 Energy 99/100 System Corruption 27% Temperature Cool (0) Movement Core (50) Location -7/Factory Parts ------- > --- POWER (1) -------- (None) > --- PROPULSION (3) --- (None) > --- UTILITY (7) ------ Advanced Visual Processing Unit Advanced Terrain Scan Processor Power Shielding > --- WEAPON (2) ------- (None) > --- INVENTORY (5) ---- Decoy Drone Bay (16/16) Improved Assault Rifle Assault Cannon Mini Grenade Launcher Peak State ------------ > --- POWER ------------ Deuterium Engine > --- PROPULSION ------- Light Treads Wheel Compact Wheel > --- UTILITY ---------- Improved Heat Sink High-capacity Storage Unit Improved Sensor Array Medium Armor Plating Hardened Light Armor Plating Decoy Drone Bay > --- WEAPON ----------- Advanced Beam Cannon Improved Assault Rifle > --- INVENTORY -------- Deuterium Engine Light Treads Wheel Improved Heat Sink High-capacity Matter Pod Improved Signal Interpreter Hardened Light Armor Plating Hacking Suite System Shield Advanced Beam Cannon Advanced Beam Cannon Advanced Beam Cannon Improved Assault Rifle Enhanced Autogun Mini Grenade Launcher Mini Grenade Launcher Mining Laser [Rating: 41] Favorites ----------- Power Deuterium Engine Engine Deuterium Engine Propulsion Wheel Treads Light Treads Wheel Wheel Flight Unit Xenon Bombardment Thruster Utility High-capacity Storage Unit Device Improved Heat Sink Storage High-capacity Storage Unit Processor Advanced Terrain Scan Processor Hackware Hacking Suite Protection Hardened Light Armor Plating Weapon Advanced Beam Cannon Energy Gun Medium Laser Energy Cannon Advanced Beam Cannon Ballistic Gun Assault Rifle Launcher Mini Grenade Launcher Special Weapon Mining Laser Build | -11 -10 -10 -9 -8 -7 -7 -7 ------- Run | Yrd Mat Min Mat Mat Fac Was Fac Slots Evolved 6 | . . . 2 2 2 . . Power . | . . . . . . . . Propulsion 1 | . . . . 1 . . . Utility 5 | . . . 2 1 2 . . Weapon . | . . . . . . . . Parts Attached 89 | 7 8 8 20 29 6 . 11 Power 10 | 1 . 2 4 2 1 . . Engine 10 | 1 . 2 4 2 1 . . Core . | . . . . . . . . Reactor . | . . . . . . . . Propulsion 29 | 2 . 4 6 11 1 . 5 Treads 11 | 1 . 1 4 4 1 . . Leg . | . . . . . . . . Wheel 14 | 1 . 3 2 7 . . 1 Hover . | . . . . . . . . Flight 4 | . . . . . . . 4 Utility 31 | 2 4 . 7 8 4 . 6 Device 10 | 1 1 . 2 3 1 . 2 Storage 4 | 1 3 . . . . . . Processor 2 | . . . . . . . 2 Hackware 4 | . . . . 1 2 . 1 Protection 11 | . . . 5 4 1 . 1 Artifact . | . . . . . . . . Weapon 19 | 2 4 2 3 8 . . . Energy Gun 3 | 1 . . 1 1 . . . Energy Cannon 4 | . 2 1 . 1 . . . Ballistic Gun 7 | 1 1 1 1 3 . . . Ballistic Cannon . | . . . . . . . . Launcher 4 | . 1 . . 3 . . . Special Weapon 1 | . . . 1 . . . . Impact Weapon . | . . . . . . . . Slashing Weapon . | . . . . . . . . Piercing Weapon . | . . . . . . . . Special Melee Weapon . | . . . . . . . . Unidentified Prototypes 6 | . 1 . 2 3 . . . Parts Lost 28 | . . 3 2 7 3 6 7 Power 3 | . . 1 . 1 1 . . Propulsion 11 | . . 2 1 3 . 1 4 Utility 13 | . . . 1 3 2 4 3 Weapon 1 | . . . . . . 1 . Highest Loss Streak 6 | . . 1 1 3 2 6 6 To Critical Strikes . | . . . . . . . . Average Backups 16 | 5 14 19 18 18 16 14 4 Power 1 | . 1 2 2 1 . . . Propulsion 3 | 3 4 3 3 2 2 2 . Utility 4 | . 4 5 4 5 5 4 1 Weapon 7 | . 3 7 7 8 8 7 2 Tool/Special . | . . . . . . . . Unused Backups 32 | . 4 1 9 5 . 9 4 Power 3 | . . . 3 . . . . Propulsion 5 | . 1 . 1 1 . 2 . Utility 8 | . 1 1 2 . . 3 1 Weapon 16 | . 2 . 3 4 . 4 3 Tool/Special . | . . . . . . . . Average Slot Usage (%) 94 | . 99 99 97 98 99 71 17 Engine 10 | . 14 13 11 9 7 5 . Treads 10 | . 14 14 10 8 7 4 . Wheel 13 | . 14 13 11 16 15 11 4 Device 15 | . 14 14 20 12 15 9 6 Storage 10 | . 14 14 11 8 7 5 . Hackware 3 | . . . . 8 14 11 . Protection 8 | . . . 10 14 14 11 1 Energy Cannon 9 | . 9 14 10 8 7 5 . Ballistic Gun 10 | . 13 14 10 8 7 5 . Peak Build Rating 41 | 7 13 14 21 29 41 39 21 Average Rating 19 | 6 10 13 18 26 34 26 12 On Entrance 15 | . 7 13 14 20 25 39 2 Naked Turns 61 | . . . . . . 37 24 Heaviest Build 70 | 15 52 52 61 69 70 66 2 Greatest Support 26 | 16 16 16 10 26 26 26 3 Greatest Overweight (x) 14 | 1 3 5 6 6 2 14 . Average Overweight (x) 3 | . 1 4 5 3 2 1 . Largest Inventory Capacity 20 | 8 20 20 20 20 20 20 5 Average Capacity 18 | 7 15 20 20 19 20 15 5 Most Carried 20 | 8 20 20 20 20 19 18 5 Average Carried 17 | 5 14 19 19 19 17 14 4 Final Capacity 20 | 8 20 20 20 20 20 5 5 Final Carried 20 | 8 20 20 20 20 18 5 5 Class Distribution -------------------- 63% | Scavenger-Mutant 30% | Mutant 6% | Hacker-Mutant Dominant Class ---------------- Mutant | -10/Materials Scavenger-Mutant | -10/Mines Scavenger-Mutant | -9/Materials Scavenger-Mutant | -8/Materials Hacker-Mutant | -7/Factory Hacker-Mutant | -7/Waste Mutant | -7/Factory Resources | -11 -10 -10 -9 -8 -7 -7 -7 ----------- Run | Yrd Mat Min Mat Mat Fac Was Fac Matter Collected 2968 | 453 466 171 619 1081 53 . 125 Remotely . | . . . . . . . . Salvage Created 4938 | 228 557 201 1818 2081 53 . . Parts 293 | 21 28 18 112 110 4 . . Haulers Intercepted 13 | . 2 . 5 6 . . . Recyclers Shooed 5 | . . . 2 3 . . . Parts Field Recycled . | . . . . . . . . Retrieved Matter . | . . . . . . . . Parts Self-Destructed . | . . . . . . . . Prevented . | . . . . . . . . Kills | -11 -10 -10 -9 -8 -7 -7 -7 ------- Run | Yrd Mat Min Mat Mat Fac Was Fac Combat Hostiles Destroyed 70 | . 10 5 23 31 1 . . Guns 23 | . 5 2 7 9 . . . Cannons 31 | . 2 3 13 12 1 . . AOE 14 | . 3 . 2 9 . . . Classes Destroyed 12 | 3 5 . 3 1 . . . Worker 19 | 2 4 2 5 6 . . . Builder 8 | . 2 . 1 5 . . . Tunneler 11 | 8 . 2 . 1 . . . Hauler 13 | . 2 . 5 6 . . . Recycler 11 | 1 1 . 5 4 . . . Operator 2 | . . . 2 . . . . Watcher 11 | . 3 . 5 3 . . . Swarmer 18 | . 6 3 6 3 . . . Grunt 32 | . 4 2 6 20 . . . Duelist 2 | . . . 2 . . . . Sentry 17 | . . . 9 7 1 . . Hunter 1 | . . . . 1 . . . Best Kill Streak 8 | 4 6 3 7 8 1 . . Combat Bots Only 5 | . 3 3 5 4 1 . . Max Kills in Single Turn 2 | 1 2 1 2 2 1 . . Gunslinging . | . . . . . . . . Exploded 2 | . 2 . 1 2 . . . Melee . | . . . . . . . . Uniques/NPCs Destroyed . | . . . . . . . . Combat | -11 -10 -10 -9 -8 -7 -7 -7 -------- Run | Yrd Mat Min Mat Mat Fac Was Fac Hostile Shots Fired 546 | . 38 42 123 145 60 8 130 Missed 163 | . 9 7 36 38 20 . 53 Hits 383 | . 29 35 87 107 40 8 77 Melee 9 | . . . 1 . . 8 . Projectile 374 | . 29 35 86 107 40 . 77 AOE 1 | . . . . . 1 . . Critical Strikes 14 | . 1 1 1 5 . 5 1 Damage Taken 5203 | . 303 465 1079 1759 389 323 885 Core 1256 | . 29 123 147 247 38 206 466 Absorbed by Shields . | . . . . . . . . Redirected to Shielding 14 | . . . 14 . . . . Regen/Repaired (Parts) 748 | . 70 . 309 369 . . . Core Remaining (%) 64 | 100 . 39 63 55 . . . Volleys Fired 398 | 32 47 27 116 153 10 13 . Largest 2 | 2 2 2 2 2 2 2 . Hottest 100 | 70 88 88 100 100 91 91 . Shots Fired 774 | 64 90 54 229 291 20 26 . Gun 431 | 64 66 27 113 138 10 13 . Cannon 318 | . 20 27 113 135 10 13 . Launcher 23 | . 4 . 2 17 . . . Special 2 | . . . 1 1 . . . Kinetic 376 | 32 43 27 113 138 10 13 . Thermal 375 | 32 43 27 114 136 10 13 . Explosive 23 | . 4 . 2 17 . . . Electromagnetic . | . . . . . . . . Robot Hit Streak 17 | 6 6 6 12 16 17 7 . Robot Miss Streak 6 | 6 4 3 6 4 3 2 . Penetration Max . | . . . . . . . . Secondary Targets 1 | . 1 . . . . . . Max Gunslinging Chain 1 | . 1 . . . . . . Shots Hit Robots 470 | 34 56 32 131 183 15 19 . Core Hits 203 | 12 29 10 55 93 2 1 1 Critical Kills 3 | . . . 2 1 . . . Critical Parts Destroyed 1 | 1 . . . . . . . Critical Strikes 9 | 3 3 . 2 1 . . . Burn 5 | 2 3 . . . . . . Meltdown 2 | . . . 1 1 . . . Destroy 2 | 1 . . 1 . . . . Melee Attacks . | . . . . . . . . Impact . | . . . . . . . . Slashing . | . . . . . . . . Piercing . | . . . . . . . . Sneak Attacks . | . . . . . . . . Combat Hostiles . | . . . . . . . . Follow-up Attacks . | . . . . . . . . Damage Inflicted 9981 | 415 1107 560 2509 4704 271 356 59 Guns 3777 | 415 591 254 928 1353 88 148 . Cannons 4164 | . 252 306 1480 1735 183 208 . Explosions 1981 | . 264 . 101 1616 . . . Melee . | . . . . . . . . Ramming 59 | . . . . . . . 59 Kinetic 3385 | 237 377 254 928 1353 88 148 . Thermal 4556 | 178 466 306 1480 1735 183 208 . Explosive 1981 | . 264 . 101 1616 . . . Electromagnetic . | . . . . . . . . Impact . | . . . . . . . . Slashing . | . . . . . . . . Piercing . | . . . . . . . . Highest Corruption 26 | . . . . 2 . 16 26 Average Corruption 4 | . . . . 1 . 11 20 Corruption Purged . | . . . . . . . . Corruption Blocked . | . . . . . . . . Effects 29 | . . . . 5 . 6 18 Message Errors 8 | . . . . 1 . . 7 Matter Fused 3 | . . . . 1 . 1 1 Heat Flow Errors 6 | . . . . 1 . 2 3 Energy Discharges 5 | . . . . . . 2 3 Data Loss (minor) 2 | . . . . 1 . . 1 Misfires 1 | . . . . 1 . . . Alerts 1 | . . . . . . . 1 Misdirections 3 | . . . . . . 1 2 Overload Shots . | . . . . . . . . Overflow Damage 51 | . 27 . 2 22 . . . Projectiles 21 | . 11 . 2 8 . . . Explosions 30 | . 16 . . 14 . . . Melee . | . . . . . . . . Knockbacks . | . . . . . . . . Impact . | . . . . . . . . Kinetic . | . . . . . . . . Secondary . | . . . . . . . . Self-Inflicted Damage 142 | . 21 . . 95 . . 26 Shots 5 | . 1 . . 4 . . . Rammed 12 | . . . . . . . 12 Targets Rammed 12 | . . . . . . . 12 Kicked . | . . . . . . . . Crushed . | . . . . . . . . Highest Temperature 384 | 99 342 22 355 384 14 178 198 Average Temperature 50 | 42 58 5 20 63 7 75 96 Received Heat Transfer 1785 | . 84 156 327 873 78 . 267 Effects 1 | . . . . 1 . . . Energy Bleed 1 | . . . . 1 . . . Siege Activations . | . . . . . . . . Martial Activations . | . . . . . . . . Shielding Activations . | . . . . . . . . Robots Disrupted . | . . . . . . . . Combat Hostiles . | . . . . . . . . Robots Corrupted . | . . . . . . . . Combat Hostiles . | . . . . . . . . Parts Fried . | . . . . . . . . Impact Corruptions . | . . . . . . . . Robots Melted 2 | . . . 1 1 . . . Combat Hostiles 2 | . . . 1 1 . . . Parts Melted 13 | . 3 1 3 6 . . . Heat Transferred 8954 | 666 1295 518 2627 3145 333 370 . Parts Sabotaged . | . . . . . . . . Parts Stolen . | . . . . . . . . Parts Stripped . | . . . . . . . . Power Chain Reactions . | . . . . . . . . Alert | -11 -10 -10 -9 -8 -7 -7 -7 ------- Run | Yrd Mat Min Mat Mat Fac Was Fac Maximum Alert Level 2 | . . . 2 2 1 . . Low Security (%) 54 | 100 100 100 31 23 51 100 100 Level 1 20 | . . . 53 5 48 . . Level 2 25 | . . . 15 70 . . . Level 3 . | . . . . . . . . Level 4 . | . . . . . . . . Level 5 . | . . . . . . . . High Security . | . . . . . . . . Max Security . | . . . . . . . . Peak Influence 654 | 15 126 53 435 654 284 37 110 Initial 284 | . . 1 . 182 284 37 . Average 230 | 2 37 8 264 451 199 12 24 Influence Increases 3230 | 55 380 211 1022 1180 50 . 332 Destroy 0b10 Robot/C 1580 | . 200 140 560 620 20 . 40 Destroy 0b10 Robot/NC 380 | 55 60 20 115 125 . . 5 Destroy Leader 448 | . 40 30 200 148 10 . 20 Allied During Kill 22 | . . 6 16 . . . . Successful Hack 149 | . 36 . 44 37 20 . 12 Disable Machine 180 | . 15 15 60 90 . . . Destroy Structure 141 | . 29 . 12 100 . . . Partial Spotted 30 | . . . 15 15 . . . Lose Combat Pursuer 300 | . . . . 45 . . 255 Influence Decreases 3130 | 55 375 216 591 985 570 106 232 Entered New Map 664 | . . 4 . 249 342 69 . Time Decay 2169 | 55 375 192 551 666 198 30 102 Lost Part 217 | . . 20 20 70 30 7 70 Lost Ally 80 | . . . 20 . . . 60 Squads Dispatched 11 | . . . 4 3 1 . 3 Investigation 5 | . . . 1 2 . . 2 Extermination 2 | . . . . . 1 . 1 Reinforcement 4 | . . . 3 1 . . . Assault . | . . . . . . . . Garrison . | . . . . . . . . Intercept . | . . . . . . . . Searches Triggered . | . . . . . . . . Construction Impeded . | . . . . . . . . Haulers Reinforced . | . . . . . . . . Active Scanning Responses . | . . . . . . . . Cargo Convoy Interrupts . | . . . . . . . . Stealth | -11 -10 -10 -9 -8 -7 -7 -7 --------- Run | Yrd Mat Min Mat Mat Fac Was Fac Distress Signals 8 | . 1 . 3 3 1 . . Communications Jammed . | . . . . . . . . Distress Signals . | . . . . . . . . Times Spotted 136 | . 15 7 38 45 5 6 20 Peak Tracking Total 8 | . 5 3 4 4 3 6 8 Tactical Retreats 10 | . . . . 3 . . 7 Traps | -11 -10 -10 -9 -8 -7 -7 -7 ------- Run | Yrd Mat Min Mat Mat Fac Was Fac Traps Triggered 3 | . . 2 . . 1 . . Indirectly . | . . . . . . . . Trap Hack Attempts . | . . . . . . . . Triggered . | . . . . . . . . Disarmed . | . . . . . . . . Reprogrammed . | . . . . . . . . Reused . | . . . . . . . . Traps Extracted . | . . . . . . . . Installed . | . . . . . . . . Triggered . | . . . . . . . . Machines | -11 -10 -10 -9 -8 -7 -7 -7 ---------- Run | Yrd Mat Min Mat Mat Fac Was Fac Machines Disabled 12 | . 1 1 4 6 . . . Max in Single Turn 2 | . 1 1 2 1 . . . Garrison Access 2 | . . . . 1 1 . . Machines Repaired . | . . . . . . . . Machines Dismantled . | . . . . . . . . Machines Sabotaged . | . . . . . . . . Overloaded Fab Kills . | . . . . . . . . Hacking | -11 -10 -10 -9 -8 -7 -7 -7 --------- Run | Yrd Mat Min Mat Mat Fac Was Fac Machines Accessed 46 | . 9 2 13 16 3 . 3 Terminals 25 | . 6 . 8 10 . . 1 Fabricators 1 | . . . . . . . 1 Repair Stations 4 | . 1 . 2 1 . . . Recycling Units 7 | . 2 . 1 2 2 . . Scanalyzers 4 | . . . 2 2 . . . Garrison Access 3 | . . . . 1 1 . 1 Total Hacks 156 | . 31 2 48 62 8 . 5 Successful 105 | . 20 2 37 39 6 . 1 Failed 50 | . 11 . 10 23 2 . 4 Catastrophic 10 | . 1 . 4 3 1 . 1 Database Lockouts 1 | . . . 1 . . . . Manual 69 | . 20 . 19 25 2 . 3 Terminals 70 | . 20 . 22 26 . . 2 Fabricators 1 | . . . . . . . 1 Repair Stations 27 | . 5 . 11 11 . . . Recycling Units 22 | . 6 . 3 7 6 . . Scanalyzers 26 | . . . 12 14 . . . Garrison Access 8 | . . . . 4 2 . 2 Terminal Hacks 23 | . 8 2 9 4 . . . Record 3 | . . . 2 1 . . . Robot Analysis 6 | . 3 . 3 . . . . Prototype ID Bank 2 | . 1 . 1 . . . . Open Door 2 | . . 2 . . . . . Branch Access Points 1 | . . . . 1 . . . Terminal Index 1 | . . . . 1 . . . Alert Level 1 | . . . 1 . . . . Locate Traps 4 | . 3 . . 1 . . . Hauler Manifests 2 | . 1 . 1 . . . . Registered Components 1 | . . . 1 . . . . Fabricator Hacks . | . . . . . . . . Repair Station Hacks 24 | . 4 . 10 10 . . . Scan Component 12 | . 2 . 5 5 . . . Repair 12 | . 2 . 5 5 . . . Recycling Unit Hacks 11 | . 3 . 2 3 3 . . Report Inventory 7 | . 2 . 1 2 2 . . Retrieve Components 4 | . 1 . 1 1 1 . . Scanalyzer 25 | . . . 11 14 . . . Insert Component 10 | . . . 6 4 . . . Analyze 15 | . . . 5 10 . . . Garrison Access Hacks 2 | . . . . 1 1 . . Seal Access 2 | . . . . 1 1 . . Unauthorized Hacks 20 | . 5 . 5 7 2 . 1 Terminals 12 | . 3 . 4 5 . . . Botnet 12 | . 3 . 4 5 . . . Fabricators 1 | . . . . . . . 1 Liberate 1 | . . . . . . . 1 Repair Stations . | . . . . . . . . Recycling Units 7 | . 2 . 1 2 2 . . Reject 7 | . 2 . 1 2 2 . . Scanalyzers . | . . . . . . . . Garrison Access . | . . . . . . . . Data Cores Recovered . | . . . . . . . . Used . | . . . . . . . . Hacking Detections 40 | . 8 . 11 16 2 . 3 Full Trace Events 5 | . . . 1 2 . . 2 Feedback Events 3 | . . . . 3 . . . Corruption 2 | . . . . 2 . . . Hackware Fried 1 | . . . . 1 . . . Feedback Blocked . | . . . . . . . . Robot Schematics Acquired . | . . . . . . . . Robots Built . | . . . . . . . . Authchips . | . . . . . . . . Time . | . . . . . . . . Total Robot Build Rating . | . . . . . . . . Part Schematics Acquired 7 | . . . 4 3 . . . Parts Built . | . . . . . . . . Authchips . | . . . . . . . . Time . | . . . . . . . . Total Part Build Rating . | . . . . . . . . Parts Repaired 12 | . 2 . 5 5 . . . Time 423 | . 64 . 205 154 . . . Parts Recycled . | . . . . . . . . Recycled Matter . | . . . . . . . . Retrieved Matter . | . . . . . . . . Retrieved Components 27 | . 9 . 10 5 3 . . Parts Scanalyzed 7 | . . . 4 3 . . . Part Schematics Acquired 7 | . . . 4 3 . . . Parts Damaged 1 | . . . 1 . . . . Bothacking | -11 -10 -10 -9 -8 -7 -7 -7 ------------ Run | Yrd Mat Min Mat Mat Fac Was Fac Used RIF Installer . | . . . . . . . . Robots Hacked . | . . . . . . . . Non-combat . | . . . . . . . . Combat . | . . . . . . . . Robot Hacks Applied . | . . . . . . . . Relay Couplers Released . | . . . . . . . . Fabnet Peak Effective % . | . . . . . . . . Robots Rewired . | . . . . . . . . Allies Hacked . | . . . . . . . . Hacks Repelled . | . . . . . . . . Allies | -11 -10 -10 -9 -8 -7 -7 -7 -------- Run | Yrd Mat Min Mat Mat Fac Was Fac Total Allies 4 | . . 1 . . . . 3 Largest Group 3 | . . 1 1 . . . 3 Highest-Rated Group 48 | . . 31 31 . . . 48 Highest-Rated Ally 31 | . . 31 31 . . . 16 Total Orders 1 | . . . . . 1 . . RETURN 1 | . . . . . 1 . . Ally Attacks 46 | . . 7 13 . . . 26 Total Damage 606 | . . 84 273 . . . 249 Kills 10 | . . 2 5 . . . 3 Allies Corrupted . | . . . . . . . . Allies Melted . | . . . . . . . . Intel | -11 -10 -10 -9 -8 -7 -7 -7 ------- Run | Yrd Mat Min Mat Mat Fac Was Fac Active Infowar (turns) 4419 | 187 313 . 2355 922 409 95 138 Optics 12 | . . . . . . . 12 Sensors 3907 | . . . 2355 922 409 95 126 Seismic 500 | 187 313 . . . . . . Robot Analysis Total 6 | . 3 . 3 . . . . Derelict Logs Recovered 3 | . . 3 . . . . . Drone Launches 1 | . . . . . 1 . . Drone Recoveries 1 | . . . . . 1 . . Exploration | -11 -10 -10 -9 -8 -7 -7 -7 ------------- Run | Yrd Mat Min Mat Mat Fac Was Fac Turns Passed 8530 | 286 1100 1151 2546 2549 410 136 352 Spaces Moved 5046 | 175 712 688 1197 1359 197 97 621 Core 683 | 9 . . . . . 53 621 Treads . | . . . . . . . . Legs . | . . . . . . . . Wheels 4363 | 166 712 688 1197 1359 197 44 . Hover . | . . . . . . . . Flight . | . . . . . . . . Fastest Speed 50 | 50 100 130 155 95 120 50 50 Average Speed 126 | 98 118 151 161 129 120 89 50 Slowest Speed 750 | 100 145 155 170 170 120 750 50 Overloaded Moves . | . . . . . . . . Propulsion Burnouts . | . . . . . . . . Robots Hopped . | . . . . . . . . Potential Cave-ins . | . . . . . . . . Cave-ins Triggered . | . . . . . . . . Exploration Rate (%) 60 | 6 98 100 87 92 5 75 24 Regions Visited 7 Branch Regions 1 Pre-discovered Areas 1 | . . 1 . . . . . Known Exits Taken . | . . . . . . . . Unknown Exits Taken 5 | 1 1 1 1 1 . . . Scrap Searched 1 | . . 1 . . . . . Spaces Dug 2 | . . . 1 1 . . . Terrain Destroyed 178 | . 40 . 5 133 . . . Melee . | . . . . . . . . Projectile 2 | . . . 1 1 . . . AOE 176 | . 40 . 4 132 . . . Terrain Rammed . | . . . . . . . . Walls Destroyed . | . . . . . . . . Machines Disabled . | . . . . . . . . Actions | -11 -10 -10 -9 -8 -7 -7 -7 --------- Run | Yrd Mat Min Mat Mat Fac Was Fac Total 6450 | 221 885 741 1596 1878 351 118 660 Wait 711 | . 83 8 213 260 132 7 8 Move 5040 | 174 711 687 1196 1358 197 96 621 Hop . | . . . . . . . . Pick Up 91 | 8 20 4 17 35 3 . 4 Fast Attach 40 | 7 3 3 8 7 . 2 10 Attach 27 | . 1 4 5 9 7 . 1 Detach 6 | . 2 1 2 . 1 . . Swap 53 | . 6 3 14 29 1 . . Drop 72 | . 12 4 25 27 . . 4 Fire 398 | 32 47 27 116 153 10 13 . Melee . | . . . . . . . . Ram 12 | . . . . . . . 12 Kick . | . . . . . . . . Crush . | . . . . . . . . Escape Stasis . | . . . . . . . . Rewire . | . . . . . . . . Trap . | . . . . . . . . Miscellaneous . | . . . . . . . . Route ------- -11/Scrapyard -10/Materials (discovered 4 exits: *Mat x3 / *Min) -10/Mines (discovered 3 exits: *Mat x2 / [*Sub]) -9/Materials (discovered 5 exits: *Mat x3 / *Min x2) -8/Materials (discovered 2 exits: *Fac x2) -7/Factory -7/Waste -7/Factory (discovered 2 exits: [*Fac] / *Sto) History --------- Turn | Location | Event 8 | -11/Scrapyard | Discovered new exit (range 16) 287 | -11/Scrapyard | Entered Materials 320 | -10/Materials | Build established: Mutant 588 | -10/Materials | Discovered new exit (range 12) 764 | -10/Materials | Discovered new exit (range 8) 944 | -10/Materials | Discovered new exit (range 11) 1114 | -10/Materials | Repaired Assault Rifle 1153 | -10/Materials | Repaired Lgt. Nuclear Core 1180 | -10/Materials | Discovered new exit (range 16) 1387 | -10/Materials | Entered Mines 1410 | -10/Mines | Met a Derelict who couldn't figure out how to use a Trap Extractor 1410 | -10/Mines | Met a Derelict bent on vengeance 1439 | -10/Mines | Discovered new exit (range 10) 1503 | -10/Mines | Discovered new exit (range 8) 1522 | -10/Mines | Learned location of 1 exit from Materials 1718 | -10/Mines | Escorted by a lone wolf Derelict 1869 | -10/Mines | A weapon hastily lodged in a ceiling crevice suddenly fell to the ground 1914 | -10/Mines | Core integrity fell below 50% 1972 | -10/Mines | Discovered new exit (range 9) 2179 | -10/Mines | Found the Drone Emporium 2188 | -10/Mines | Found Prototype Device 2220 | -10/Mines | Build established: Scavenger-Mutant 2377 | -10/Mines | Learned location of Storage (-7) 2538 | -10/Mines | Entered Materials 2538 | -9/Materials | Accompanied by 1 ally 2538 | -9/Materials | Evolved 2 slots: Utility x2 2539 | -9/Materials | Identified exit to Mines 2549 | -9/Materials | Identified Decoy Drone Bay 2726 | -9/Materials | Repaired Broken Adv. Beam Cannon 2754 | -9/Materials | Repaired Lgt. Treads 3000 | -9/Materials | Discovered new exit (range 3) 3032 | -9/Materials | Build established: Mutant 3062 | -9/Materials | Repaired Assault Rifle 3114 | -9/Materials | Repaired Adv. Beam Cannon 3154 | -9/Materials | Repaired Imp. Heat Sink 3229 | -9/Materials | Discovered exit to Mines (range 7) 3513 | -9/Materials | Build established: Scavenger-Mutant 3642 | -9/Materials | Discovered new exit (range 8) 4980 | -9/Materials | Discovered new exit (range 15) 5049 | -9/Materials | Central database locked down 5084 | -9/Materials | Entered another Materials area 5084 | -8/Materials | Evolved 2 slots: Propulsion x1, Utility x1 5749 | -8/Materials | Lost 3 parts (1p2n) 6333 | -8/Materials | Discovered new exit (range 16) 6793 | -8/Materials | Repaired Med. Armor Plating 6826 | -8/Materials | Repaired Hrd. Light Armor Plating 6865 | -8/Materials | Repaired Minigun 6892 | -8/Materials | Repaired Hcp. Storage Unit 6968 | -8/Materials | Repaired Lgt. Treads 7607 | -8/Materials | Discovered new exit (range 15) 7627 | -8/Materials | Hacking Suite fried by hacking feedback 7633 | -8/Materials | Entered Factory 7633 | -7/Factory | Evolved 2 slots: Utility x2 7634 | -7/Factory | Identified exit to Storage 7927 | -7/Factory | Build established: Hacker-Mutant 8043 | -7/Factory | Sucked down chute 8043 | -7/Factory | Entered Waste 8051 | -7/Waste | Spotted C-40 Crusher 8058 | -7/Waste | EMP discharged 8058 | -7/Waste | System corruption reached 10% 8106 | -7/Waste | Spotted C-40 Crusher 8112 | -7/Waste | Spotted C-40 Crusher 8113 | -7/Waste | Spotted C-40 Crusher 8117 | -7/Waste | Crushed by Compactor (1 part destroyed, 2 dropped) 8126 | -7/Waste | Spotted C-40 Crusher 8137 | -7/Waste | Crushed by Compactor (1 part destroyed, 2 dropped) 8138 | -7/Waste | Crushed by Compactor (1 part destroyed, 2 dropped) 8141 | -7/Waste | Crushed by Compactor (1 part destroyed, 1 dropped) 8142 | -7/Waste | Crushed by Compactor (1 part destroyed, 2 dropped) 8158 | -7/Waste | EMP discharged 8165 | -7/Waste | Discovered new exit (range 12) 8165 | -7/Waste | Spotted C-40 Crusher 8173 | -7/Waste | Lost 6 parts (1n4u1w) 8179 | -7/Waste | Entered Factory 8325 | -7/Factory | Discovered exit to Storage (range 5) 8335 | -7/Factory | Core integrity fell below 50% 8447 | -7/Factory | Core integrity fell below 20% 8453 | -7/Factory | Lost 6 parts (4n2u) 8456 | -7/Factory | Build established: Mutant 8529 | -7/Factory | Discovered new exit (range 18) 8531 | -7/Factory | Destroyed by P-60 Hacker with Shock Rifle Last Messages --------------- 08411_ System Shield destroyed. 08412_ Acquired Xenon Bombardment Thruster. 08414_ Xenon Bombardment Thruster destroyed. 08414_ Acquired Xenon Bombardment Thruster. 08417_ Imp. Heat Sink destroyed. 08420_ Xenon Bombardment Thruster destroyed. 08428_ System corrupted: Energy discharge (-16). 08448_ YJPKUJB81CZADYTHJ>Z/8WPBOFQH 08451_ Manufacturing Mainframe disabled. 08452_ ALERT: Potential suspicious activity detected, Programmers report to Factory Zone 7O. 08455_ Slammed into G-47 Trooper. 08471_ System corrupted: Component data lost. 08477_ Acquired Power Shielding. 08495_ System corrupted: Energy discharge (-25). 08517_ System corrupted: Heat flow error (+232). 08518_ Acquired Adv. Visual Processing Unit. 08529_ EXIT=FOUND Map ----- +----------------------------------------------------+ | ??????????????????# #? #?????? | | ??????????????????# #?############?????? | | ??????????????????# #??????????????????? | | ??????????????????# ##############?????? | | ??????????????????# # #?????? | | ??????????????????# # #?????? | | ??????????????????# # !#?????? | | ??????????????????# k#! ! #?????? | | ??????????????????# # !! """" #?????? | | ??????????????????# # """" #?????? | | ??????????????????# # """" #?????? | | ??????????????????# # """" #?????? | | ??????????????????# r p # """" #?????? | | ??????????????????# # """" #?????? | | ??????????????????# # ! #?????? | | ??????????????????+ k #?????? | | ??????????????????# ##############?????? | | ??????????????????# #???? #??????? | | ??????????????????# #???"""" #??????? | | ?????????????????## ^ ##??"Y"" #??????? | | ?????????????????# #? #??????? | | ?????????????????# #? #??????? | | ?????????????????# ! #"" #??????? | | ?????????????????# # " #??????? | | ?????????????????# T + " #??????? | | ?????????????????# @ # #??????? | | ?????????????????# # #??????? | | ?????????????????# #? #??????? | | ?????????????????# #? #??????? | | ?????????????????### ###?? #??????? | | ???????????????????# #???? #??????? | | ???????????????????# #????? #??????? | | ???????????????????+ #?????########??????? | | ???????????????????# #???????????????????? | | ???????????????????#r #???????????????????? | | ???????????????????# #???????????????????? | | ???????????????????# #???????????????????? | | ???????????????????# #???????????????????? | | ???????????????????# #???????????????????? | | ???????????????????# #???????????????????? | | ???????????????????# #???????????????????? | | ???????????????????# #???????????????????? | | ???????????????????# #???????????????????? | | ??????????????????? #???????????????????? | | ??????????????????? k ????????????????????? | | ??????????????????? H ????????????????????? | | ???????????????????? ????????????????????? | | ?????????????????????? ????????????????????? | | ?????????????????????????????????????????????? | | ?????????????????????????????????????????????? | +----------------------------------------------------+ Best States ------------- Heat Dissipation 55 Energy Generation 14 Energy Capacity 275 Matter Stores 300 Matter Capacity 300 Sight Range 20 Robot Scan Range 15 Terrain Scan Density 210 Armor Coverage 375 Power Shielding 33 Propulsion Shielding 33 Evasion (%) 50 Offensive Hacking 10 Defensive Hacking 10 Item Schematics ----------------- Adv. Beam Cannon | -9/Materials | Scanalyzed Hcp. Battery | -9/Materials | Scanalyzed Hacking Suite | -9/Materials | Scanalyzed Slug Cannon | -9/Materials | Scanalyzed Imp. Assault Rifle | -8/Materials | Scanalyzed Med. Armor Plating | -8/Materials | Scanalyzed Mni. Grenade Launcher | -8/Materials | Scanalyzed Robot Schematics ------------------ None Fabricated ------------ Nothing Repaired ---------- Assault Rifle | 49% | -10/Materials Lgt. Nuclear Core | 62% | -10/Materials Adv. Beam Cannon | 18% | -9/Materials | Broken Lgt. Treads | 27% | -9/Materials Assault Rifle | 37% | -9/Materials Adv. Beam Cannon | 83% | -9/Materials Imp. Heat Sink | 55% | -9/Materials Med. Armor Plating | 12% | -8/Materials Hrd. Light Armor Plating | 68% | -8/Materials Minigun | 68% | -8/Materials Hcp. Storage Unit | 72% | -8/Materials Lgt. Treads | 77% | -8/Materials Alien Tech Used ----------------- None Achievements -------------- None Challenges ------------ None Game ------ Seed DimensionalBlanketJetlance Manual? 0 Play Time 01:15:54 Cumulative 369.4 hours Start 2025.09.02 @ 01:28:34 End 2025.09.02 @ 15:04:20 Sessions 3 Manual Loads 0 Difficulty Rogue Special Mode None Game No. 307 Rogue 307 Adventurer 0 Explorer 0 Win Type - Total 2 Types 2/0/0/0/0/0/0/0/0/0 Lore% 80 Gallery% 68 Achievement% 55 Wizard Run 0 Options --------- Layout 2 ASCII 1 Keyboard 1 Movement Numpad Keybinds 0 Fullscreen 2 Font 32/TamsynBold Map View 50x44 Zoom Use 0% Tactical HUD 1 Map Filters NONE Filters NONE Steam 1 RUN: cc2aea9f-e775-4a93-b5ad-36dbc7243855